bitfinex/quotes_SOLUSD_20250525
["timestamp","ask_amount","ask_price","bid_price","bid_amount"]
[1748202685703,4.30645189,172.16,172.13,81.5]
[1748202685909,33.92398419,172.16,172.13,81.5]
[1748202686607,29.6175323,172.16,172.13,81.5]
[1748202686807,25.28565749,172.17,172.13,81.5]
[1748202688405,4.33313155,172.16,172.13,81.5]
[1748202688610,8.64135345,172.16,172.13,81.5]
[1748202688994,4.3082219,172.16,172.13,81.5]
[1748202689684,4.3082219,172.15,172.13,81.5]
[1748202690689,3.32883812,172.16,172.13,81.5]
[1748202691402,4.33629636,172.15,172.13,81.5]
[1748202691610,4.33629636,172.15,172.11,132.78565749]
[1748202691816,25.28565749,172.17,172.12,25.28565749]
[1748202692299,4.31052531,172.16,172.12,25.28565749]
[1748202693292,4.31052531,172.15,172.12,25.28565749]
[1748202694105,4.31052531,172.14,172.12,25.28565749]
[1748202694293,4.31052531,172.14,172.12,81.5]
[1748202694802,29.5961828,172.14,172.09,132.78565749]
[1748202695016,7.66865213,172.13,172.09,132.78565749]
[1748202695199,11.97917744,172.13,172.09,132.78565749]
[1748202695693,7.64155501,172.13,172.09,132.78565749]
[1748202696103,4.31052531,172.13,172.09,132.78565749]
[1748202696322,4.31052531,172.12,172.09,132.78565749]
[1748202697227,60.10565749,172.15,172.09,132.78565749]
[1748202697525,4.33671194,172.14,172.09,132.78565749]
[1748202698023,4.30881525,172.13,172.09,123.68785647]
[1748202698725,4.30881525,172.12,172.09,123.68785647]
[1748202699701,51.00785647,172.15,172.09,123.68785647]
[1748202699901,3.32922164,172.14,172.09,123.68785647]
[1748202700401,4.33529501,172.13,172.11,16.18785647]
[1748202701329,34.82,172.15,172.11,16.18785647]
[1748202701713,4.3069629,172.14,172.11,16.18785647]
[1748202702106,3.32846994,172.13,172.11,16.18785647]
[1748202702306,3.32846994,172.13,172.12,16.18785647]
[1748202702505,3.32846994,172.13,172.09,26.0]
[1748202702705,3.32846994,172.13,172.11,16.18785647]
[1748202703117,7.66215535,172.15,172.11,16.18785647]
[1748202704211,4.33368541,172.14,172.1,16.18785647]
[1748202704429,8.63933555,172.14,172.1,16.18785647]
[1748202704629,16.18785647,172.13,172.09,26.0]
[1748202704830,19.51632641,172.13,172.09,26.0]
[1748202705010,4.33368541,172.12,172.09,26.0]
[1748202706009,16.18785647,172.13,172.09,26.0]
[1748202706210,4.30513449,172.12,172.09,26.0]
[1748202706425,4.30513449,172.12,172.09,42.18785647]
[1748202707208,18.64964886,172.14,172.09,42.18785647]
[1748202708026,4.30447704,172.13,172.09,42.18785647]
[1748202708829,4.30447704,172.12,172.09,42.18785647]
[1748202709035,4.30447704,172.12,172.09,26.0]
[1748202710026,3.32750469,172.13,172.09,26.0]
[1748202710505,3.32750469,172.13,172.09,42.18785647]
[1748202710706,34.83750533,172.14,172.09,42.18785647]
[1748202711199,34.83750533,172.14,172.09,16.18785647]
[1748202711499,4.30486295,172.13,172.09,16.18785647]
[1748202711703,8.63844659,172.13,172.09,16.18785647]
[1748202712133,4.30486295,172.13,172.09,16.18785647]
[1748202712325,4.30486295,172.13,172.08,16.18785647]
[1748202712525,4.30486295,172.13,172.08,97.68785647]
[1748202712731,4.30486295,172.12,172.08,97.68785647]
[1748202713731,3.32806583,172.13,172.08,97.68785647]
[1748202714234,4.33424778,172.12,172.08,97.68785647]
[1748202714548,4.3043022,172.11,172.08,97.68785647]
[1748202715821,34.83750533,172.14,172.08,97.68785647]
[1748202716441,4.304835,172.13,172.08,97.68785647]
[1748202716817,4.33603347,172.12,172.08,97.68785647]
[1748202717018,4.304835,172.11,172.08,97.68785647]
[1748202718135,34.83750533,172.14,172.08,97.68785647]
[1748202718519,5.5004191,172.13,172.08,97.68785647]
[1748202719739,7.64002455,172.12,172.08,97.68785647]
[1748202720222,4.33909504,172.11,172.08,97.68785647]
[1748202721027,4.30878282,172.1,172.08,97.68785647]
[1748202721530,4.30878282,172.1,172.09,16.18785647]
[1748202722167,34.83750533,172.14,172.09,16.18785647]
[1748202722348,3.33301257,172.13,172.09,16.18785647]
[1748202722640,7.67284405,172.13,172.09,16.18785647]
[1748202722859,4.30959258,172.12,172.09,16.18785647]
[1748202723033,4.30959258,172.12,172.11,42.18785647]
[1748202723360,4.30959258,172.12,172.11,123.68785647]
[1748202723831,4.16561052,172.19,172.11,123.68785647]
[1748202724032,4.33954302,172.18,172.14,16.18785647]
[1748202724233,2.16968294,172.17,172.14,16.18785647]
[1748202724840,4.30901124,172.16,172.14,16.18785647]
[1748202725041,4.33954302,172.15,172.14,16.18785647]
[1748202725733,8.64855426,172.15,172.14,16.18785647]
[1748202729351,4.33954302,172.15,172.14,16.18785647]
[1748202729856,2.16975706,172.18,172.14,16.18785647]
[1748202730150,7.64190325,172.17,172.14,16.18785647]
[1748202730458,4.3391126,172.16,172.12,5.80985663]
[1748202730658,4.3391126,172.16,172.15,16.18785647]
[1748202731145,3.33277424,172.17,172.15,16.18785647]
[1748202731357,3.33277424,172.17,172.16,16.18785647]
[1748202731731,46.35346699,172.21,172.16,16.18785647]
[1748202731951,30.16561052,172.21,172.16,16.18785647]
[1748202732160,8.64579824,172.2,172.16,16.18785647]
[1748202732357,10.81449855,172.2,172.16,16.18785647]
[1748202732941,3.33116165,172.19,172.16,16.18785647]
[1748202733140,4.33813016,172.18,172.16,16.18785647]
[1748202734263,4.30766808,172.17,172.16,16.18785647]
[1748202734464,4.30766808,172.17,172.16,97.68785647]
[1748202735752,2.16805265,172.2,172.16,97.68785647]
[1748202735956,4.33536402,172.19,172.17,16.18785647]
[1748202736562,4.33536402,172.18,172.17,16.18785647]
[1748202737063,8.64092567,172.18,172.17,16.18785647]
[1748202739567,4.30556165,172.18,172.17,16.18785647]
[1748202741173,4.30556165,172.18,172.17,97.68785647]
[1748202741675,4.33174813,172.2,172.17,97.68785647]
[1748202742175,4.30229576,172.19,172.17,97.68785647]
[1748202743058,57.73786699,172.22,172.17,97.68785647]
[1748202743572,7.65650406,172.21,172.17,97.68785647]
[1748202744172,8.6314675,172.2,172.17,97.68785647]
[1748202745175,4.30111716,172.2,172.17,97.68785647]
[1748202745468,51.90785647,172.22,172.17,97.68785647]
[1748202745860,4.30018472,172.21,172.17,97.68785647]
[1748202746768,4.32891629,172.2,172.17,97.68785647]
[1748202747067,8.62910101,172.2,172.17,97.68785647]
[1748202747570,3.32428746,172.21,172.17,97.68785647]
[1748202748781,51.90785647,172.22,172.17,97.68785647]
[1748202749477,16.18785647,172.22,172.17,97.68785647]
[1748202749679,8.62670857,172.21,172.17,97.68785647]
[1748202750162,8.62670857,172.21,172.18,16.18785647]
[1748202750766,8.62670857,172.2,172.18,16.18785647]
[1748202751464,8.62670857,172.2,172.17,97.68785647]
[1748202751681,19.51160666,172.22,172.17,97.68785647]
[1748202752214,3.32375019,172.21,172.17,97.68785647]
[1748202752965,3.32375019,172.21,172.17,81.5]
[1748202753476,8.62822234,172.2,172.17,81.5]
[1748202753976,8.62822234,172.2,172.18,16.18785647]
[1748202754484,4.30015909,172.2,172.18,16.18785647]
[1748202754864,4.32806325,172.22,172.17,81.5]
[1748202755183,4.32806325,172.22,172.17,97.68785647]
[1748202755184,20.51591972,172.22,172.17,97.68785647]
[1748202755574,4.32806325,172.21,172.17,97.68785647]
[1748202756481,7.65227762,172.21,172.17,97.68785647]
[1748202756663,3.32421437,172.21,172.17,97.68785647]
[1748202757073,4.30098752,172.2,172.17,97.68785647]
[1748202757971,42.18785647,172.23,172.17,97.68785647]
[1748202758369,4.32954003,172.22,172.18,16.18785647]
[1748202758588,4.30160651,172.21,172.18,16.18785647]
[1748202759479,4.30160651,172.21,172.18,97.68785647]
[1748202759700,4.30160651,172.2,172.18,97.68785647]
[1748202760586,3.32579939,172.22,172.18,97.68785647]
[1748202760893,5.4917534,172.22,172.18,97.68785647]
[1748202761097,4.33190803,172.21,172.18,97.68785647]
[1748202762176,4.33190803,172.2,172.18,97.68785647]
[1748202762690,2.16595401,172.22,172.18,97.68785647]
[1748202763189,3.32804692,172.21,172.18,97.68785647]
[1748202763777,4.30686933,172.2,172.18,97.68785647]
[1748202763974,4.30686933,172.2,172.18,81.5]
[1748202764577,4.30686933,172.19,172.18,81.5]
[1748202765598,2.16883709,172.22,172.18,81.5]
[1748202765899,4.30868164,172.19,172.18,81.5]
[1748202767571,8.64889167,172.19,172.18,81.5]
[1748202769603,11.98360774,172.19,172.18,81.5]
[1748202776507,11.98360774,172.19,172.18,97.68785647]
[1748202782292,11.98360774,172.19,172.18,81.5]
[1748202785787,14.15829361,172.19,172.18,81.5]
[1748202786408,11.98360774,172.19,172.18,81.5]
[1748202787916,14.15848969,172.19,172.18,81.5]
[1748202792423,11.98360774,172.19,172.18,81.5]
[1748202792637,14.1586542,172.19,172.18,81.5]
[1748202795432,14.1586542,172.19,172.18,97.68785647]
[1748202800232,14.1586542,172.19,172.18,81.5]
[1748202800633,14.1586542,172.19,172.16,16.18785647]
[1748202801135,4.30868164,172.18,172.16,16.18785647]
[1748202801320,4.30868164,172.18,172.16,97.68785647]
[1748202801842,4.34021003,172.17,172.16,97.68785647]
[1748202802138,8.64889167,172.17,172.16,97.68785647]
[1748202802338,11.98360774,172.17,172.16,97.68785647]
[1748202802741,7.64339771,172.17,172.16,97.68785647]
[1748202817452,7.64339771,172.17,172.16,81.5]
[1748202817959,11.99376047,172.17,172.16,81.5]
[1748202818745,11.99376047,172.17,172.16,97.68785647]
[1748202819259,7.64339771,172.17,172.16,97.68785647]
[1748202825637,11.99345832,172.17,172.16,97.68785647]
[1748202830072,12.00983261,172.17,172.16,97.68785647]
[1748202830953,7.659772,172.17,172.16,97.68785647]
[1748202832353,4.32505593,172.17,172.16,97.68785647]
[1748202838477,7.6653849,172.17,172.16,97.68785647]
[1748202840081,4.32505593,172.17,172.16,97.68785647]
[1748202840782,4.32505593,172.17,172.16,103.49640665]
[1748202842180,4.32505593,172.17,172.16,97.68785647]
[1748202845579,7.66565571,172.17,172.16,97.68785647]
[1748202848864,7.66565571,172.17,172.16,103.49640665]
[1748202851190,7.66565571,172.17,172.16,97.68785647]
[1748202852072,4.32505593,172.17,172.16,97.68785647]
[1748202855392,7.66532595,172.17,172.16,97.68785647]
[1748202857675,4.32505593,172.17,172.16,97.68785647]
[1748202863380,8.67503927,172.17,172.16,97.68785647]
[1748202863582,12.0154268,172.17,172.16,97.68785647]
[1748202868408,12.0154268,172.17,172.16,123.68785647]
[1748202868708,8.67503927,172.17,172.16,123.68785647]
[1748202869106,4.32505593,172.17,172.16,123.68785647]
[1748202869820,4.16561052,172.22,172.16,123.68785647]
[1748202869990,2.17449241,172.21,172.19,16.18785647]
[1748202870191,3.33946751,172.2,172.19,16.18785647]
[1748202870718,5.51395992,172.2,172.19,16.18785647]
[1748202870886,14.18998793,172.2,172.19,16.18785647]
[1748202873506,14.18998793,172.2,172.18,16.18785647]
[1748202873808,12.01549552,172.2,172.18,16.18785647]
[1748202874400,12.01549552,172.2,172.18,97.68785647]
[1748202874601,3.33946751,172.19,172.18,97.68785647]
[1748202874994,12.01549552,172.19,172.18,97.68785647]
[1748202884828,7.66697785,172.19,172.18,97.68785647]
[1748202891928,4.32751034,172.19,172.18,97.68785647]
[1748202896947,8.67369419,172.19,172.18,97.68785647]
[1748202897542,12.01164136,172.19,172.18,97.68785647]
[1748202906063,12.01164136,172.19,172.18,81.5]
[1748202906356,12.01164136,172.19,172.18,97.68785647]
[1748202909761,14.18549402,172.19,172.18,97.68785647]
[1748202910960,14.18549402,172.19,172.18,81.5]
[1748202914394,14.18549402,172.19,172.18,97.68785647]
[1748202918907,14.18549402,172.19,172.18,81.5]
[1748202921407,14.18549402,172.19,172.16,107.5]
[1748202921705,2.17385266,172.18,172.16,107.5]
[1748202921883,3.33794717,172.17,172.16,107.5]
[1748202922707,7.68413102,172.17,172.16,81.5]
[1748202923087,12.01164136,172.17,172.16,81.5]
[1748202926410,7.66545751,172.17,172.16,81.5]
[1748202927008,7.66545751,172.17,172.16,97.68785647]
[1748202928109,4.32751034,172.17,172.16,97.68785647]
[1748202930794,7.66400644,172.17,172.16,97.68785647]
[1748202931500,12.00826453,172.17,172.16,97.68785647]
[1748202932118,7.66400644,172.17,172.16,97.68785647]
[1748202933624,12.00828148,172.17,172.16,81.5]
[1748202933920,12.00828148,172.17,172.16,97.68785647]
[1748202937525,7.66400644,172.17,172.16,97.68785647]
[1748202937829,3.3364961,172.17,172.16,103.49640665]
[1748202938510,4.34396626,172.19,172.16,103.49640665]
[1748202938819,4.34396626,172.19,172.18,16.18785647]
[1748202939328,4.32431262,172.19,172.18,97.68785647]
[1748202940236,4.16561052,172.22,172.18,97.68785647]
[1748202940532,4.16561052,172.22,172.21,16.18785647]
[1748202940832,2.17190624,172.22,172.21,16.18785647]
[1748202941008,6.51571872,172.22,172.21,16.18785647]
[1748202941931,9.85173242,172.22,172.21,16.18785647]
[1748202943419,14.19524236,172.22,172.21,16.18785647]
[1748202944832,14.19524236,172.22,172.2,16.18785647]
[1748202945223,8.68732242,172.21,172.2,16.18785647]
[1748202945424,12.02333612,172.21,172.2,16.18785647]
[1748202958682,7.67952364,172.21,172.2,97.68785647]
[1748202958957,4.34350994,172.21,172.2,97.68785647]
[1748202959630,4.34350994,172.21,172.2,16.18785647]
[1748202961070,4.34350994,172.21,172.2,80.93928235]
[1748202961433,4.16561052,172.25,172.2,162.43928235]
[1748202961738,4.16561052,172.25,172.24,16.18785647]
[1748202961939,8.50533261,172.25,172.24,16.18785647]
[1748202962469,8.67773614,172.25,172.24,16.18785647]
[1748202963752,4.33801405,172.25,172.24,16.18785647]
[1748202965572,4.33801405,172.25,172.24,97.68785647]
[1748202970278,4.33801405,172.25,172.24,81.5]
[1748202971890,4.33801405,172.25,172.24,97.68785647]
[1748202979919,3.32672327,172.28,172.26,27.6438]
[1748202980103,4.16561052,172.31,172.27,67.1359]
[1748202980418,4.16561052,172.31,172.3,26.0]
[1748202980608,4.16561052,172.31,172.3,61.23643884]
[1748202980809,8.35058372,172.35,172.3,144.83928235]
[1748202981015,8.35058372,172.35,172.34,42.18785647]
[1748202981193,8.35058372,172.35,172.34,26.0]
[1748202981521,0.14216157,172.45,172.34,33.9797]
[1748202981721,1.6241,172.46,172.37,26.0]
[1748202982222,1.6241,172.46,172.34,13.78200236]
[1748202982223,1.6241,172.46,172.36,0.14216157]
[1748202982599,1.6241,172.46,172.38,26.0]
[1748202982793,16.18785647,172.47,172.42,16.18785647]
[1748202983016,43.92344521,172.48,172.43,16.18785647]
[1748202983599,9.12344521,172.48,172.4,26.0]
[1748202983803,18.64964886,172.47,172.4,26.0]
[1748202983992,18.64964886,172.47,172.39,26.0]
[1748202984417,9.12344521,172.48,172.42,25.19765139]
[1748202984620,9.12344521,172.48,172.4,0.14216157]
[1748202985012,9.12344521,172.48,172.43,25.19765139]
[1748202985214,9.12344521,172.48,172.4,0.14216157]
[1748202985426,9.12344521,172.48,172.4,0.57985316]
[1748202985609,91.23445213,172.54,172.4,0.57985316]
[1748202985610,44.8,172.56,172.4,0.14216157]
[1748202985805,18.64964886,172.5,172.45,25.19765139]
[1748202986124,18.79181043,172.52,172.46,25.19765139]
[1748202986331,43.84730025,172.52,172.42,26.0]
[1748202986491,18.64964886,172.52,172.47,25.19765139]
[1748202986695,0.14216157,172.55,172.44,6.3359]
[1748202986932,18.64964886,172.56,172.47,26.0]
[1748202987224,1.6241,172.57,172.49,25.19765139]
[1748202987421,1.6241,172.57,172.47,26.0]
[1748202987422,43.84730025,172.56,172.47,26.0]
[1748202987596,18.64964886,172.56,172.5,25.19765139]
[1748202987930,1.6241,172.57,172.51,25.19765139]
[1748202988130,26.82175139,172.57,172.51,25.19765139]
[1748202988326,26.82175139,172.57,172.49,26.0]
[1748202988507,18.64964886,172.56,172.47,0.14216157]
[1748202988698,13.61518767,172.58,172.46,41.1578873]
[1748202988897,13.61518767,172.58,172.49,26.0]
[1748202989103,18.64964886,172.57,172.49,26.0]
[1748202989314,18.64964886,172.57,172.52,25.19765139]
[1748202989709,13.61518767,172.58,172.53,51.19765139]
[1748202989915,13.61518767,172.58,172.53,26.0]
[1748202990110,13.61518767,172.58,172.56,25.19765139]
[1748202990335,13.61518767,172.58,172.57,25.19765139]
[1748202990641,13.61518767,172.58,172.53,26.0]
[1748202990799,13.61518767,172.58,172.54,0.57931867]
[1748202990999,13.61518767,172.58,172.54,0.72148024]
[1748202991213,13.61518767,172.58,172.56,25.19765139]
[1748202991420,13.61518767,172.58,172.53,51.19765139]
[1748202991729,13.61518767,172.58,172.46,14.49602836]
[1748202991730,19.78708767,172.58,172.45,5.79878225]
[1748202991905,25.19765139,172.54,172.48,25.19765139]
[1748202992099,19.78708767,172.58,172.52,25.19765139]
[1748202992306,19.78708767,172.58,172.48,26.0]
[1748202992307,18.64964886,172.57,172.53,25.19765139]
[1748202992506,13.61518767,172.58,172.51,26.0]
[1748202992507,13.61518767,172.58,172.54,25.19765139]
[1748202992833,13.61518767,172.58,172.56,51.19765139]
[1748202993009,13.61518767,172.58,172.56,26.0]
[1748202993216,13.61518767,172.58,172.57,25.19765139]
[1748202993823,13.61518767,172.58,172.56,26.0]
[1748202994024,13.61518767,172.58,172.57,25.19765139]
[1748202994705,13.61518767,172.58,172.56,26.0]
[1748202994907,13.61518767,172.58,172.5,6.4274]
[1748202994908,43.84730025,172.57,172.5,6.4274]
[1748202995216,25.19765139,172.55,172.5,31.62505139]
[1748202995416,25.19765139,172.56,172.51,26.0]
[1748202995721,25.19765139,172.55,172.5,25.19765139]
[1748202996805,18.64964886,172.57,172.51,26.0]
[1748202997129,25.19765139,172.56,172.51,26.0]
[1748202997322,18.64964886,172.57,172.51,26.0]
[1748202997529,43.84730025,172.57,172.51,26.0]
[1748202998139,25.19765139,172.56,172.5,51.19765139]
[1748202999234,43.84730025,172.57,172.5,51.19765139]
[1748202999536,18.64964886,172.57,172.51,25.19765139]
[1748202999831,43.84730025,172.57,172.52,25.19765139]
[1748203000005,43.84730025,172.57,172.5,26.0]
[1748203000212,43.84730025,172.57,172.51,25.19765139]
[1748203000626,18.64964886,172.57,172.51,25.19765139]
[1748203001730,13.61518767,172.58,172.55,25.19765139]
[1748203001926,13.61518767,172.58,172.56,25.19765139]
[1748203002331,13.61518767,172.58,172.55,25.19765139]
[1748203002518,13.61518767,172.58,172.51,26.0]
[1748203002721,13.61518767,172.58,172.54,25.19765139]
[1748203003543,13.61518767,172.58,172.53,25.19765139]
[1748203003910,38.81283906,172.58,172.53,25.19765139]
[1748203004431,13.61518767,172.58,172.53,25.19765139]
[1748203005433,13.61518767,172.58,172.51,26.0]
[1748203005611,13.61518767,172.58,172.52,25.19765139]
[1748203006030,38.81283906,172.58,172.51,25.19765139]
[1748203006230,38.81283906,172.58,172.53,26.0]
[1748203006822,13.61518767,172.58,172.53,26.0]
[1748203007651,13.61518767,172.58,172.53,25.19765139]
[1748203008338,13.61518767,172.58,172.54,25.19765139]
[1748203009842,13.61518767,172.58,172.53,26.0]
[1748203010043,13.61518767,172.58,172.54,25.19765139]
[1748203010242,13.61518767,172.58,172.53,51.19765139]
[1748203011170,13.61518767,172.58,172.53,25.19765139]
[1748203011533,13.61518767,172.58,172.54,25.19765139]
[1748203011729,13.61518767,172.58,172.53,26.0]
[1748203011951,13.61518767,172.58,172.57,25.19765139]
[1748203012948,13.61518767,172.58,172.57,51.19765139]
[1748203013562,13.61518767,172.58,172.56,34.74]
[1748203013768,13.61518767,172.58,172.57,25.19765139]
[1748203013925,13.61518767,172.58,172.56,34.74]
[1748203014363,10.75985467,172.58,172.57,25.19765139]
[1748203015685,10.75985467,172.58,172.56,34.74]
[1748203015889,10.75985467,172.58,172.57,25.19765139]
[1748203016770,10.75985467,172.58,172.56,34.74]
[1748203017086,10.75985467,172.58,172.55,25.19765139]
[1748203017282,10.75985467,172.58,172.55,26.0]
[1748203017700,10.75985467,172.58,172.55,51.19765139]
[1748203017890,10.75985467,172.58,172.55,26.0]
[1748203018075,10.75985467,172.58,172.56,25.19765139]
[1748203018691,10.75985467,172.58,172.57,25.19765139]
[1748203019986,10.75985467,172.58,172.56,25.19765139]
[1748203020780,10.75985467,172.58,172.55,51.19765139]
[1748203021304,10.75985467,172.58,172.55,26.0]
[1748203021686,10.75985467,172.58,172.54,25.19765139]
[1748203022000,35.95750606,172.58,172.53,51.19765139]
[1748203022207,10.75985467,172.58,172.54,25.19765139]
[1748203022507,35.95750606,172.58,172.53,51.19765139]
[1748203022746,10.75985467,172.58,172.54,25.19765139]
[1748203023940,10.75985467,172.58,172.56,25.19765139]
[1748203024113,10.75985467,172.58,172.57,25.19765139]
[1748203025433,10.75985467,172.58,172.56,25.19765139]
[1748203025823,10.75985467,172.58,172.54,26.0]
[1748203026141,10.75985467,172.58,172.56,25.19765139]
[1748203028737,10.75985467,172.58,172.51,26.0]
[1748203029067,35.95750606,172.58,172.51,26.0]
[1748203029270,25.19765139,172.57,172.51,51.19765139]
[1748203029637,27.35607336,172.57,172.53,26.0]
[1748203030163,2.15842197,172.56,172.53,26.0]
[1748203030861,25.19765139,172.57,172.53,26.0]
[1748203031042,25.04738079,172.57,172.51,25.19765139]
[1748203032263,2.16219003,172.56,172.52,25.19765139]
[1748203032862,2.16219003,172.56,172.51,25.19765139]
[1748203033366,2.16219003,172.55,172.51,25.19765139]
[1748203033663,2.16219003,172.55,172.5,26.0]
[1748203033829,2.16219003,172.55,172.51,25.19765139]
[1748203034032,25.04738079,172.57,172.51,25.19765139]
[1748203034533,25.19765139,172.56,172.5,26.0]
[1748203034748,25.19765139,172.56,172.5,25.19765139]
[1748203035059,25.19765139,172.56,172.51,25.19765139]
[1748203035359,25.19765139,172.56,172.5,25.19765139]
[1748203036354,2.16284791,172.55,172.52,25.19765139]
[1748203036665,2.16284791,172.55,172.54,25.19765139]
[1748203037158,2.16284791,172.57,172.54,25.19765139]
[1748203037343,2.16284791,172.57,172.56,25.19765139]
[1748203037749,10.75985467,172.58,172.56,25.19765139]
[1748203038060,10.75985467,172.58,172.57,25.19765139]
[1748203038264,10.75985467,172.58,172.56,25.19765139]
[1748203038966,10.75985467,172.58,172.52,81.5]
[1748203039145,10.75985467,172.58,172.55,25.19765139]
[1748203041140,10.75985467,172.58,172.54,25.19765139]
[1748203042148,10.75985467,172.58,172.54,81.5]
[1748203042650,10.75985467,172.58,172.54,106.69765139]
[1748203044262,25.19765139,172.55,172.49,81.5]
[1748203044452,25.19765139,172.53,172.47,106.69765139]
[1748203044656,25.19765139,172.53,172.48,25.19765139]
[1748203044860,25.19765139,172.53,172.48,106.69765139]
[1748203045252,47.54,172.55,172.48,106.69765139]
[1748203045457,25.19765139,172.53,172.48,106.69765139]
[1748203047361,25.19765139,172.54,172.48,81.5]
[1748203047571,25.19765139,172.54,172.49,25.19765139]
[1748203047756,72.73765139,172.55,172.5,25.19765139]
[1748203048574,25.19765139,172.54,172.49,25.19765139]
[1748203049149,47.54,172.55,172.53,25.19765139]
[1748203049349,10.75985467,172.58,172.54,51.19765139]
[1748203049551,10.75985467,172.58,172.57,25.19765139]
[1748203049752,10.75985467,172.58,172.56,25.19765139]
[1748203050165,10.75985467,172.58,172.54,107.5]
[1748203050349,10.75985467,172.58,172.54,81.5]
[1748203050670,10.75985467,172.58,172.54,106.69765139]
[1748203051366,10.75985467,172.58,172.54,81.5]
[1748203051663,10.75985467,172.58,172.55,25.19765139]
[1748203051884,25.19765139,172.56,172.48,81.5]
[1748203052052,25.19765139,172.54,172.48,132.69765139]
[1748203052244,25.19765139,172.54,172.49,25.19765139]
[1748203054350,25.19765139,172.54,172.48,107.5]
[1748203054552,34.74,172.57,172.48,132.69765139]
[1748203054774,2.16078682,172.56,172.52,25.19765139]
[1748203054951,2.16078682,172.56,172.51,25.19765139]
[1748203055156,27.35843821,172.56,172.51,25.19765139]
[1748203055977,25.19765139,172.56,172.51,25.19765139]
[1748203056155,10.75985467,172.58,172.55,25.19765139]
[1748203056552,10.75985467,172.58,172.56,25.19765139]
[1748203056774,10.75985467,172.58,172.52,0.14216157]
[1748203056971,10.75985467,172.58,172.56,25.19765139]
[1748203057380,10.75985467,172.58,172.52,0.14216157]
[1748203057381,10.75985467,172.58,172.57,25.19765139]
[1748203060864,10.75985467,172.58,172.57,51.33981296]
[1748203061984,10.75985467,172.58,172.57,112.18171177]
[1748203062361,10.75985467,172.58,172.57,86.18171177]
[1748203063264,4.91012139,172.68,172.58,5.93633166]
[1748203063473,25.19765139,172.67,172.62,25.19765139]
[1748203063676,4.91012139,172.68,172.63,25.19765139]
[1748203064482,1.5916,172.68,172.63,25.19765139]
[1748203064985,3.74917352,172.68,172.63,25.19765139]
[1748203065791,1.5916,172.68,172.63,25.19765139]
[1748203066364,1.5916,172.68,172.64,25.19765139]
[1748203068572,1.5916,172.68,172.63,25.19765139]
[1748203068888,4.29973833,172.67,172.63,81.5]
[1748203069594,26.78925139,172.68,172.63,81.5]
[1748203071098,1.5916,172.68,172.63,81.5]
[1748203071301,4.298362,172.67,172.63,81.5]
[1748203072787,25.19765139,172.66,172.63,81.5]
[1748203073097,25.19765139,172.64,172.63,81.5]
[1748203074299,34.72,172.67,172.63,81.5]
[1748203074503,25.19765139,172.65,172.63,81.5]
[1748203074699,25.19765139,172.65,172.6,25.19765139]
[1748203075700,25.19765139,172.64,172.59,25.19765139]
[1748203076694,25.19765139,172.64,172.58,132.69765139]
[1748203076996,1.5916,172.68,172.61,25.19765139]
[1748203077301,61.50925139,172.68,172.63,25.19765139]
[1748203077794,25.19765139,172.67,172.62,25.19765139]
[1748203078002,25.19765139,172.67,172.61,106.69765139]
[1748203078296,25.07740609,172.67,172.61,106.69765139]
[1748203078503,4.15352741,172.73,172.65,25.19765139]
[1748203078797,25.19765139,172.71,172.65,25.19765139]
[1748203079681,4.28744703,172.7,172.65,25.19765139]
[1748203080089,29.48509842,172.7,172.65,25.19765139]
[1748203080285,4.28744703,172.7,172.66,25.19765139]
[1748203081701,29.48509842,172.7,172.62,0.14216157]
[1748203081884,29.48509842,172.7,172.65,25.19765139]
[1748203082298,25.19765139,172.69,172.64,25.19765139]
[1748203082629,25.19765139,172.67,172.61,51.19765139]
[1748203082802,25.19765139,172.67,172.61,26.0]
[1748203083014,25.19765139,172.67,172.61,51.19765139]
[1748203083377,25.19765139,172.65,172.6,25.19765139]
[1748203083589,25.19765139,172.65,172.59,25.19765139]
[1748203083808,25.19765139,172.64,172.59,106.69765139]
[1748203084495,25.19765139,172.63,172.58,51.19765139]
[1748203084808,25.19765139,172.62,172.58,26.0]
[1748203086008,25.19765139,172.61,172.58,26.0]
[1748203086324,25.19765139,172.61,172.55,27.10120672]
[1748203086797,25.19765139,172.61,172.55,53.10120672]
[1748203087402,25.19765139,172.61,172.56,25.19765139]
[1748203088616,34.72,172.65,172.56,25.19765139]
[1748203088796,25.19765139,172.62,172.56,25.19765139]
[1748203090693,34.72,172.65,172.55,27.90355533]
[1748203091003,25.19765139,172.61,172.56,25.19765139]
[1748203091222,25.19765139,172.61,172.56,106.69765139]
[1748203094580,4.28900424,172.6,172.56,106.69765139]
[1748203095010,29.48665563,172.6,172.55,109.40355533]
[1748203095714,4.28900424,172.59,172.55,109.40355533]
[1748203095915,4.28900424,172.59,172.55,134.60120672]
[1748203096097,4.28900424,172.59,172.56,25.19765139]